[Event "1000GM NY Winter GM-B 2024"]
[Site "New York"]
[Date "2024.01.12"]
[Round "1.1"]
[White "Paragua, Mark"]
[Black "Adewumi, Tanitoluwa"]
[Result "1/2-1/2"]
[ECO "E16"]
[WhiteElo "2448"]
[BlackElo "2280"]
[Annotator "RC"]
[PlyCount "202"]
[EventDate "2024.01.10"]
[EventType "tourn"]
[EventCountry "USA"]
[SourceTitle "playchess.com"]
[Source "ChessBase"]
[SourceQuality "1"]
[TimeControl "5400+30"]

1. d4 {[%emt 0:00:17]} Nf6 {[%emt 0:00:03]} 2. c4 {[%emt 0:00:09]} e6 {[%emt 0:00:06]} 3. g3 {[%emt 0:00:04]} d5 {[%emt 0:00:05]} 4. Bg2 {[%emt 0:00:07]} Bb4+ {[%emt 0:00:04]} 5. Nd2 {[%emt 0:00:06]} O-O {[%emt 0:00:05]} 6. Ngf3 {[%emt 0:00:05]} b6 {[%emt 0:00:06]} 7. O-O {[%emt 0:00:14]} Bb7 {[%emt 0:00:04]} 8. a3 {[%emt 0:00:09]} Be7 {[%emt 0:00:20]} 9. cxd5 {[%emt 0:00:14]} exd5 {[%emt 0:00:12]} 10. b4 {[%emt 0:00:05]} a5 {[%emt 0:00:12]} 11. b5 {[%emt 0:00:58]} c6 {[%emt 0:00:13]} 12. a4 {[%emt 0:04:25]} Qe8 {[%emt 0:04:44]} 13. Qb3 {[%emt 0:12:01]} Bb4 {[%emt 0:03:35]} 14. Ba3 {[%emt 0:09:13]} Bxa3 {[%emt 0:02:49]} 15. Rxa3 {[%emt 0:03:54]} cxb5 {[%emt 0:00:07]} 16. axb5 {[%emt 0:01:02]} Nbd7 {[%emt 0:00:08]} 17. Qb2 {[%emt 0:03:35]} Rc8 {[%emt 0:02:08]} 18. Re3 {[%emt 0:05:15]} Qd8 {[%emt 0:00:53]} 19. Rc1 {[%emt 0:07:46]} Re8 {[%emt 0:01:29]} 20. Rc2 {[%emt 0:50:51]} Rc7 21. Rxc7 {[%emt 0:00:00]} Qxc7 {[%emt 0:03:45]} 22. Rc3 {[%emt 0:00:00]} Qb8 {[%emt 0:00:48]} 23. e3 {[%emt 0:00:00]} Rc8 {[%emt 0:01:25]} 24. Bh3 {[%emt 0:00:00]} Rxc3 {[%emt 0:01:08]} 25. Qxc3 {[%emt 0:00:00]} Qd6 {[%emt 0:00:15]} 26. Ne5 {[%emt 0:00:00]} g6 {[%emt 0:00:35]} 27. f3 {[%emt 0:00:00]} Nf8 {[%emt 0:01:28]} 28. Nb1 {[%emt 0:00:00]} Ne8 {[%emt 0:00:21]} 29. Nd3 {[%emt 0:00:00]} Qe7 {[%emt 0:01:07]} 30. Nb2 {[%emt 0:00:00]} Nd6 {[%emt 0:01:26]} 31. Bf1 {[%emt 0:00:00]} Ne6 {[%emt 0:01:59]} 32. Nd2 {[%emt 0:00:00]} Nc7 {[%emt 0:03:41]} 33. Qb3 {[%emt 0:03:32]} Ncxb5 {[%emt 0:04:21]} 34. Na4 {[%emt 0:00:40]} Nc4 {[%emt 0:13:46]} 35. Nxc4 {[%emt 0:01:57]} dxc4 {[%emt 0:00:05]} 36. Bxc4 {[%emt 0:00:10]} Nd6 {[%emt 0:00:18]} 37. Be2 {[%emt 0:00:18]} Bc6 {[%emt 0:01:20]} 38. Nxb6 {[%emt 0:00:43]} Qb7 {[%emt 0:00:15]} 39. d5 {[%emt 0:01:37]} Bxd5 {[%emt 0:00:41]} 40. Qxd5 {[%emt 0:00:02]} Qxb6 {[%emt 0:00:02]} 41. Kf2 {[%emt 0:00:01]} Qb4 {[%emt 0:01:18]} 42. e4 {[%emt 0:01:00]} a4 {[%emt 0:00:13]} 43. e5 {[%emt 0:00:49]} Nf5 {[%emt 0:01:35]} 44. Bc4 {[%emt 0:00:38]} Qb2+ {[%emt 0:11:12]} 45. Ke1 {[%emt 0:00:22]} Qc3+ {[%emt 0:00:58]} 46. Kf2 {[%emt 0:00:34]} Qb2+ {[%emt 0:00:40]} 47. Ke1 {[%emt 0:00:19]} Qb1+ {[%emt 0:01:07]} 48. Kd2 {[%emt 0:00:41]} Qb4+ {[%emt 0:00:09]} 49. Kd3 {[%emt 0:00:10]} Qa3+ {[%emt 0:00:32]} 50. Ke2 {[%emt 0:00:33]} Qe3+ {[%emt 0:00:31]} 51. Kf1 {[%emt 0:00:41]} Qc1+ {[%emt 0:07:21]} 52. Kf2 {[%emt 0:00:25]} Qb2+ {[%emt 0:00:05]} 53. Ke1 {[%emt 0:00:13]} Qb4+ {[%emt 0:00:05]} 54. Ke2 {[%emt 0:00:24]} Qe7 {[%emt 0:00:53]} 55. g4 {[%emt 0:00:58]} Ng7 {[%emt 0:00:49]} 56. Kf2 {[%emt 0:00:40]} Qa7+ {[%emt 0:00:31]} 57. Kg2 {[%emt 0:00:23]} Ne6 {[%emt 0:03:30]} 58. Qd6 {[%emt 0:00:01]} Nf8 {[%emt 0:02:28]} 59. Qa3 {[%emt 0:01:07]} Qc7 {[%emt 0:02:15]} 60. Qxa4 {[%emt 0:00:08]} Qxe5 {[%emt 0:00:12]} 61. Qa7 {[%emt 0:00:48]} Qf4 {[%emt 0:01:29]} 62. Qa2 {[%emt 0:00:33]} g5 {[%emt 0:03:00]} 63. Bd3 {[%emt 0:00:05]} Ne6 {[%emt 0:01:00]} 64. Bf5 {[%emt 0:00:41]} Nd4 {[%emt 0:00:31]} 65. Be4 {[%emt 0:00:04]} Kg7 {[%emt 0:01:07]} 66. h4 {[%emt 0:00:51]} gxh4 {[%emt 0:00:37]} 67. Qf2 {[%emt 0:00:15]} Qf6 {[%emt 0:00:13]} 68. f4 {[%emt 0:00:39]} Ne6 {[%emt 0:00:55]} 69. Bf5 {[%emt 0:00:16]} Nd4 {[%emt 0:00:50]} 70. Be4 {[%emt 0:00:01]} h6 {[%emt 0:00:12]} 71. Kh3 {[%emt 0:00:27]} Ne6 {[%emt 0:01:26]} 72. Bf5 {[%emt 0:00:05]} Nd4 {[%emt 0:01:48]} 73. Be4 {[%emt 0:00:02]} Nb5 {[%emt 0:01:59]} 74. Qe3 {[%emt 0:01:25]} Nc7 {[%emt 0:00:27]} 75. g5 {[%emt 0:01:40]} hxg5 {[%emt 0:00:08]} 76. fxg5 {[%emt 0:00:01]} Qe5 {[%emt 0:00:14]} 77. Kxh4 {[%emt 0:00:53]} Ne6 {[%emt 0:00:25]} 78. Kg4 {[%emt 0:00:28]} Nc5 {[%emt 0:00:31]} 79. Kf3 {[%emt 0:00:02]} Nxe4 {[%emt 0:00:21]} 80. Qxe4 {[%emt 0:00:01]} Qxg5 {[%emt 0:00:10]} 81. Qd4+ {[%emt 0:00:09]} Kg6 {[%emt 0:00:04]} 82. Qd6+ {[%emt 0:00:05]} f6 {[%emt 0:00:05]} 83. Qd8 {[%emt 0:01:20]} Qf5+ {[%emt 0:00:06]} 84. Kg3 {[%emt 0:00:06]} Qe5+ {[%emt 0:00:05]} 85. Kf3 {[%emt 0:00:15]} Qe6 {[%emt 0:00:09]} 86. Kf4 {[%emt 0:00:48]} Qc4+ {[%emt 0:00:20]} 87. Kg3 {[%emt 0:00:03]} Kg5 {[%emt 0:00:13]} 88. Qd2+ {[%emt 0:00:08]} Kf5 {[%emt 0:00:05]} 89. Qd7+ {[%emt 0:00:13]} Kg6 {[%emt 0:00:13]} 90. Qg4+ {[%emt 0:00:45]} Qxg4+ {[%emt 0:00:01]} 91. Kxg4 {[%emt 0:00:06]} f5+ {[%emt 0:00:08]} 92. Kf4 {[%emt 0:00:04]} Kf6 {[%emt 0:00:05]} 93. Kf3 {[%emt 0:00:03]} Kg5 {[%emt 0:00:02]} 94. Kg3 {[%emt 0:00:04]} f4+ {[%emt 0:00:04]} 95. Kf3 {[%emt 0:00:03]} Kf5 {[%emt 0:00:05]} 96. Kf2 {[%emt 0:00:03]} Kg4 {[%emt 0:00:06]} 97. Kg2 {[%emt 0:00:03]} f3+ {[%emt 0:00:04]} 98. Kf2 {[%emt 0:00:03]} Kf4 {[%emt 0:00:04]} 99. Kf1 {[%emt 0:00:03]} Kg3 {[%emt 0:00:05]} 100. Kg1 {[%emt 0:00:03]} f2+ {[%emt 0:00:10]} 101. Kf1 {[%emt 0:00:02]} Kf3 {[%emt 0:00:01]} 1/2-1/2

[Event "1000GM NY Winter GM-B 2024"]
[Site "New York"]
[Date "2024.01.12"]
[Round "1.2"]
[White "Lee, Alice"]
[Black "Nagy, Gabor"]
[Result "1/2-1/2"]
[ECO "E11"]
[WhiteElo "2379"]
[BlackElo "2450"]
[Annotator "RC"]
[PlyCount "79"]
[EventDate "2024.01.10"]
[EventType "tourn"]
[EventCountry "USA"]
[SourceTitle "playchess.com"]
[Source "ChessBase"]
[SourceQuality "1"]
[TimeControl "5400+30"]

1. d4 {[%emt 0:00:03]} d5 2. c4 {[%emt 0:00:30]} e6 3. Nf3 {[%emt 0:00:30]} Nf6 4. g3 {[%emt 0:00:30]} Nc6 5. Bg2 {[%emt 0:00:30]} Bb4+ 6. Bd2 {[%emt 0:00:30]} a5 7. Qc2 {[%emt 0:00:30]} dxc4 8. Qxc4 {[%emt 0:00:30]} Qd5 9. Qd3 {[%emt 0:00:30]} Qe4 10. Qxe4 {[%emt 0:00:30]} Nxe4 11. a3 {[%emt 0:00:30]} Nxd2 12. Nbxd2 {[%emt 0:00:30]} Be7 13. Rc1 {[%emt 0:00:30]} O-O 14. Nc4 {[%emt 0:00:30]} Rd8 15. e3 {[%emt 0:00:30]} Bd7 16. Nfe5 {[%emt 0:00:30]} Nxe5 17. Nxe5 {[%emt 0:00:30]} c6 18. Nxd7 {[%emt 0:00:30]} Rxd7 19. Ke2 {[%emt 0:00:30]} g6 20. h4 {[%emt 0:00:30]} h5 21. Bf3 {[%emt 0:00:30]} Kg7 22. Rc2 {[%emt 0:00:30]} Rad8 23. Rb1 {[%emt 0:00:30]} Kf6 24. b4 {[%emt 0:00:30]} axb4 25. axb4 {[%emt 0:00:30]} e5 26. dxe5+ {[%emt 0:00:30]} Kxe5 27. b5 {[%emt 0:00:30]} c5 28. Ra1 {[%emt 0:00:30]} f5 29. b6 {[%emt 0:00:30]} Ke6 30. e4 {[%emt 0:00:30]} fxe4 31. Bxe4 {[%emt 0:00:30]} Kf6 32. Ra7 {[%emt 0:00:30]} Rb8 33. Ra3 {[%emt 0:00:30]} Kg7 34. Re3 {[%emt 0:00:30]} Rbd8 35. Ra2 {[%emt 0:00:30]} Bf6 36. Rd3 {[%emt 0:00:30]} Rxd3 37. Bxd3 {[%emt 0:00:30]} Rd6 38. Ra7 {[%emt 0:00:30]} Rxb6 39. Be4 {[%emt 0:00:30]} Rb2+ 40. Kf1 {[%emt 0:00:30]} 1/2-1/2

[Event "1000GM NY Winter GM-B 2024"]
[Site "New York"]
[Date "2024.01.12"]
[Round "1.3"]
[White "Koustav Chatterjee"]
[Black "Graif, William"]
[Result "1-0"]
[ECO "B31"]
[WhiteElo "2546"]
[BlackElo "2302"]
[Annotator "TA"]
[PlyCount "61"]
[EventDate "2024.01.10"]
[EventType "tourn"]
[EventCountry "USA"]
[SourceTitle "playchess.com"]
[Source "ChessBase"]
[SourceQuality "1"]
[TimeControl "5400+30"]

{[%evp 17,61,0,0,7,20,15,13,14,16,7,20,0,0,12,9,0,19,-11,87,55,78,76,72,44,40,33,32,25,43,33,81,109,442,449,565,562,697,685,1134,1011,1218,1201,1199,1151,29980,12196]} 1. e4 {[%emt 0:01:13]} c5 {[%emt 0:00:50]} 2. Nf3 {[%emt 0:00:12]} Nc6 {[%emt 0:00:15]} 3. Bb5 {[%emt 0:00:08]} g6 {[%emt 0:00:06]} 4. O-O {[%emt 0:00:05]} Bg7 {[%emt 0:00:06]} 5. c3 {[%emt 0:00:04]} Nf6 {[%emt 0:00:08]} 6. Re1 {[%emt 0:00:07]} O-O {[%emt 0:00:08]} 7. d4 {[%emt 0:00:05]} d5 {[%emt 0:00:10]} 8. e5 {[%emt 0:00:06]} Ne4 {[%emt 0:00:05]} 9. Bxc6 {[%emt 0:00:04]} bxc6 {[%emt 0:00:05]} 10. Be3 {[%emt 0:00:03] B31: Sicilian: 2...Nc6 3 Bb5 g6.} Rb8 {[%emt 0:00:12]} 11. Qc1 {[%emt 0:00:42]} cxd4 {[%emt 0:00:29]} 12. cxd4 {[%emt 0:00:06] The position is equal.} Bf5 {[%emt 0:00:39]} 13. Nc3 {[%emt 0:07:54]} f6 {[%emt 0:24:51]} 14. Nxe4 {[%emt 0:20:33]} dxe4 {[%emt 0:04:21]} 15. Nd2 {[%emt 0:00:38]} Qd5 {[%emt 0:18:26]} 16. Nc4 {[%emt 0:00:55] [#]} a5 $146 {[%emt 0:17:02]} ({Predecessor:} 16... Be6 17. b3 Qd7 18. exf6 exf6 19. Bf4 Rbd8 20. Rxe4 g5 21. Bd6 Rf7 22. Bc5 Bd5 {½-½ Fiorito,J (2271)-Coro,L (2376) ARG-ch sf 97th 2022 (4)}) 17. Qc3 {[%emt 0:02:02]} Rb4 {[%emt 0:04:11]} (17... fxe5 $11 {keeps the balance.} 18. dxe5 (18. Nxe5 c5 $15) 18... Be6) 18. Rac1 {[%emt 0:07:58][%cal Oc4a5]} Rfb8 {[%emt 0:08:28]} 19. Bf4 {[%emt 0:02:16] Black must now prevent exf6.} R8b7 {[%emt 0:08:27]} 20. a3 {[%emt 0:05:02]} (20. Ne3 $5 {[%cal Re3d5]} Qxd4 21. Nxf5 gxf5 22. Qxc6 $14) 20... R4b5 {[%emt 0:00:56]} 21. exf6 {[%emt 0:01:52]} Bxf6 {[%emt 0:00:36]} 22. Be5 $36 {[%emt 0:02:04][%mdl 2048] White fights for an advantage.} Bg5 {[%emt 0:03:30]} 23. Ne3 {[%emt 0:01:34]} Bxe3 {[%emt 0:04:50]} (23... Qd7 $14) 24. Qxe3 $16 {[%emt 0:00:10]} (24. Rxe3 Rxb2 25. h3 a4 $11) 24... e6 $2 {[%emt 0:02:29][%mdl 8192] [#] Black is weak on the dark squares. Loses the game.} (24... Rxb2 $16 {is tougher.} 25. Rf1 (25. Qh6 Qf7 $14) 25... R7b3) 25. h3 $18 {[%emt 0:03:30][%cal Bh2h3,Bh3g4,Bg4f5][%mdl 32]} h5 {[%emt 0:01:01]} 26. Qg5 {[%emt 0:02:50] Hoping for g4.} Rf7 {[%emt 0:00:35]} 27. g4 {[%emt 0:03:32]} hxg4 {[%emt 0:00:04]} 28. hxg4 {[%emt 0:00:04][%mdl 64] [#] Trapped Piece} e3 {[%emt 0:00:17]} 29. Rxe3 {[%emt 0:00:05] Threatening mate with Rh3.} (29. gxf5 $2 {perishes.} exf2+ 30. Kh2 Rh7+ 31. Kg3 fxe1=B+ 32. Rxe1 Rb3+ 33. Re3 Rxe3+ 34. Qxe3 Qh1 $19) ({Worse is} 29. f3 Qxf3 30. Rxe3 (30. gxf5 {leads to mate.} Qf2+ 31. Kh1 Rh7+) 30... Qxg4+ 31. Qxg4 Bxg4 $11) 29... Rh7 {[%emt 0:00:24] Dodges Rh3} 30. f3 {[%emt 0:00:06]} (30. gxf5 $2 Rh1#) 30... Rxb2 {[%emt 0:01:11]} 31. gxf5 {[%emt 0:00:07] Weighted Error Value: White=0.09 (flawless) /Black=0.87} 1-0

[Event "1000GM NY Winter GM-B 2024"]
[Site "New York"]
[Date "2024.01.12"]
[Round "1.4"]
[White "Nakada, Akira"]
[Black "Levine, Joseph"]
[Result "1/2-1/2"]
[ECO "A13"]
[WhiteElo "2374"]
[BlackElo "2376"]
[Annotator "RC"]
[PlyCount "105"]
[EventDate "2024.01.10"]
[EventType "tourn"]
[EventCountry "USA"]
[SourceTitle "playchess.com"]
[Source "ChessBase"]
[SourceQuality "1"]
[TimeControl "5400+30"]

1. c4 {[%emt 0:11:06]} e6 {[%emt 0:00:05]} 2. g3 {[%emt 0:00:06]} Nf6 {[%emt 0:00:06]} 3. Bg2 {[%emt 0:00:10]} d5 {[%emt 0:00:06]} 4. Nf3 {[%emt 0:00:06]} dxc4 {[%emt 0:00:22]} 5. Qa4+ {[%emt 0:00:28]} c6 {[%emt 0:01:14]} 6. Qxc4 {[%emt 0:00:37]} b5 {[%emt 0:00:19]} 7. Qb3 {[%emt 0:00:07]} Bb7 {[%emt 0:00:27]} 8. O-O {[%emt 0:01:30]} Nbd7 {[%emt 0:01:36]} 9. d4 {[%emt 0:01:24]} Be7 {[%emt 0:02:34]} 10. Rd1 {[%emt 0:16:36]} O-O {[%emt 0:04:52]} 11. Ne5 {[%emt 0:02:51]} Nxe5 {[%emt 0:15:31]} 12. dxe5 {[%emt 0:00:06]} Nd7 {[%emt 0:00:23]} 13. Nc3 {[%emt 0:09:54]} Qc7 {[%emt 0:03:30]} 14. Ne4 {[%emt 0:02:18]} Nc5 {[%emt 0:08:18]} 15. Nxc5 {[%emt 0:05:00]} Bxc5 {[%emt 0:00:15]} 16. a4 {[%emt 0:00:09]} a6 {[%emt 0:11:31]} 17. Qc3 {[%emt 0:05:14]} Be7 {[%emt 0:05:09]} 18. Be3 {[%emt 0:03:05]} c5 {[%emt 0:09:42]} 19. Bxb7 {[%emt 0:00:19]} b4 {[%emt 0:07:23]} 20. Qd3 {[%emt 0:04:58]} Qxb7 {[%emt 0:00:19]} 21. Qd7 {[%emt 0:00:03]} Ra7 {[%emt 0:02:04]} 22. Qxb7 {[%emt 0:00:19]} Rxb7 {[%emt 0:00:02]} 23. Rac1 {[%emt 0:00:14]} Rc8 {[%emt 0:03:31]} 24. Rc4 {[%emt 0:00:27]} Kf8 {[%emt 0:01:53]} 25. b3 {[%emt 0:00:29]} Ke8 {[%emt 0:02:25]} 26. Rdc1 {[%emt 0:00:39]} Rbc7 {[%emt 0:00:09]} 27. g4 {[%emt 0:01:07]} a5 {[%emt 0:07:20]} 28. Kf1 {[%emt 0:10:03]} g5 {[%emt 0:05:45]} 29. h3 {[%emt 0:01:59]} Rd8 {[%emt 0:02:23]} 30. Bxc5 {[%emt 0:01:08]} Rdc8 {[%emt 0:02:49]} 31. Bd4 {[%emt 0:06:12]} Rxc4 {[%emt 0:00:03]} 32. Rxc4 {[%emt 0:00:08]} Rxc4 {[%emt 0:04:24]} 33. bxc4 {[%emt 0:00:02]} Kd7 {[%emt 0:00:00]} 34. Ke1 {[%emt 0:00:55]} Kc6 {[%emt 0:00:00]} 35. e3 {[%emt 0:01:49]} Bd8 {[%emt 0:00:00]} 36. Ke2 {[%emt 0:00:23]} Be7 {[%emt 0:00:00]} 37. Kd3 {[%emt 0:00:06]} Bc5 {[%emt 0:00:00]} 38. Bb2 {[%emt 0:00:09]} Be7 {[%emt 0:00:27]} 39. f4 {[%emt 0:00:18]} Bd8 {[%emt 0:03:03]} 40. Bd4 {[%emt 0:02:46]} Be7 {[%emt 0:00:00]} 41. f5 {[%emt 0:00:57]} Bc5 {[%emt 0:00:00]} 42. Bb2 {[%emt 0:03:00]} h6 {[%emt 0:00:32]} 43. Ke4 {[%emt 0:02:38]} Be7 {[%emt 0:00:17]} 44. Kd3 {[%emt 0:01:08]} Bc5 {[%emt 0:00:06]} 45. e4 {[%emt 0:00:44]} Be7 {[%emt 0:00:35]} 46. Bc1 {[%emt 0:00:23]} Bd8 {[%emt 0:00:45]} 47. Bb2 {[%emt 0:03:56]} Bc7 {[%emt 0:00:22]} 48. Ba1 {[%emt 0:01:29]} Bb6 {[%emt 0:00:20]} 49. Bb2 {[%emt 0:00:22]} Bc7 {[%emt 0:00:02]} 50. c5 {[%emt 0:00:37]} Kxc5 {[%emt 0:01:35]} 51. Bd4+ {[%emt 0:00:06]} Kc6 {[%emt 0:00:01]} 52. Kc4 {[%emt 0:00:06]} Bb6 {[%emt 0:00:41]} 53. Bb2 {[%emt 0:00:17]} 1/2-1/2

[Event "1000GM NY Winter GM-B 2024"]
[Site "New York"]
[Date "2024.01.12"]
[Round "1.5"]
[White "Griffith, Kyron"]
[Black "Luo, Terry"]
[Result "1-0"]
[ECO "C26"]
[WhiteElo "2367"]
[BlackElo "2342"]
[Annotator "RC"]
[PlyCount "129"]
[EventDate "2024.01.10"]
[EventType "tourn"]
[EventCountry "USA"]
[SourceTitle "playchess.com"]
[Source "ChessBase"]
[SourceQuality "1"]
[TimeControl "5400+30"]

1. e4 {[%emt 0:00:03]} e5 {[%emt 0:00:10]} 2. Nc3 {[%emt 0:00:22]} Nf6 {[%emt 0:01:06]} 3. d4 {[%emt 0:00:22]} exd4 {[%emt 0:04:22]} 4. Qxd4 {[%emt 0:00:26]} Nc6 {[%emt 0:00:02]} 5. Qd3 {[%emt 0:00:07]} d5 {[%emt 0:12:00]} 6. Bf4 {[%emt 0:01:09]} dxe4 {[%emt 0:08:48]} 7. Qxd8+ {[%emt 0:01:02]} Nxd8 {[%emt 0:00:27]} 8. Bxc7 {[%emt 0:02:00]} Bb4 {[%emt 0:05:30]} 9. O-O-O {[%emt 0:05:15]} Ne6 {[%emt 0:08:06]} 10. Be5 {[%emt 0:12:32]} Ng4 {[%emt 0:15:29]} 11. Bb5+ {[%emt 0:01:37]} Kf8 {[%emt 0:00:01]} 12. Bg3 {[%emt 0:00:47]} e3 {[%emt 0:05:32]} 13. Nd5 {[%emt 0:10:11]} Nxf2 {[%emt 0:08:21]} 14. Bxf2 {[%emt 0:04:19]} exf2 {[%emt 0:00:01]} 15. Nxb4 {[%emt 0:00:18]} fxg1=Q {[%emt 0:00:14]} 16. Rhxg1 {[%emt 0:00:09]} g6 {[%emt 0:00:59]} 17. Be2 {[%emt 0:14:24]} Kg7 {[%emt 0:01:33]} 18. b3 {[%emt 0:02:49]} Nc5 {[%emt 0:08:14]} 19. Nd5 {[%emt 0:02:58]} Bf5 {[%emt 0:02:05]} 20. Bf3 {[%emt 0:03:53]} Be4 {[%emt 0:03:35]} 21. Bxe4 {[%emt 0:04:43]} Nxe4 {[%emt 0:00:02]} 22. Rge1 {[%emt 0:00:05]} Rae8 {[%emt 0:00:20]} 23. Rd4 {[%emt 0:05:48]} Nf6 {[%emt 0:07:02]} 24. Rf1 {[%emt 0:04:19]} Nxd5 {[%emt 0:08:31]} 25. Rxd5 {[%emt 0:00:04]} Re7 {[%emt 0:00:00]} 26. Kb2 {[%emt 0:00:10]} h5 {[%emt 0:00:00]} 27. Rf2 {[%emt 0:00:43]} Rhe8 {[%emt 0:00:00]} 28. c4 {[%emt 0:01:37]} h4 {[%emt 0:00:00]} 29. h3 {[%emt 0:01:06]} Re2+ {[%emt 0:00:00]} 30. Rd2 {[%emt 0:00:09]} Rxf2 {[%emt 0:00:00]} 31. Rxf2 {[%emt 0:00:05]} Re3 {[%emt 0:00:00]} 32. b4 {[%emt 0:01:39]} f5 {[%emt 0:00:00]} 33. c5 {[%emt 0:01:42]} Kf6 {[%emt 0:00:00]} 34. a4 {[%emt 0:03:28]} Ke6 {[%emt 0:00:00]} 35. Rd2 {[%emt 0:00:08]} Ke7 {[%emt 0:00:03]} 36. b5 {[%emt 0:02:41]} Re5 {[%emt 0:02:17]} 37. c6 {[%emt 0:03:28]} bxc6 {[%emt 0:00:01]} 38. bxc6 {[%emt 0:00:04]} Rc5 {[%emt 0:00:05]} 39. Rd7+ {[%emt 0:00:04]} Ke6 {[%emt 0:00:14]} 40. Rxa7 {[%emt 0:00:35]} Rxc6 {[%emt 0:00:05]} 41. Rh7 {[%emt 0:00:09]} g5 {[%emt 0:03:34]} 42. Rh5 {[%emt 0:03:17]} Rc4 {[%emt 0:01:59]} 43. Kb3 {[%emt 0:00:08]} Rc1 {[%emt 0:00:38]} 44. Rxg5 {[%emt 0:00:07]} Rg1 {[%emt 0:00:15]} 45. a5 {[%emt 0:01:34]} Kf6 {[%emt 0:00:01]} 46. Rg8 {[%emt 0:00:05]} Ra1 {[%emt 0:01:13]} 47. Kb4 {[%emt 0:00:20]} Ke5 {[%emt 0:00:31]} 48. Kb5 {[%emt 0:00:32]} Rb1+ {[%emt 0:00:17]} 49. Kc5 {[%emt 0:00:25]} Rc1+ {[%emt 0:00:03]} 50. Kb6 {[%emt 0:00:03]} Rb1+ {[%emt 0:00:03]} 51. Ka7 {[%emt 0:00:10]} Kf4 {[%emt 0:00:04]} 52. a6 {[%emt 0:00:19]} Rb2 {[%emt 0:00:28]} 53. Ka8 {[%emt 0:00:12]} Ke3 {[%emt 0:00:34]} 54. a7 {[%emt 0:06:46]} Kf2 {[%emt 0:01:03]} 55. Rg5 {[%emt 0:00:20]} Rb5 {[%emt 0:00:18]} 56. Rg7 {[%emt 0:00:57]} f4 {[%emt 0:01:41]} 57. Rb7 {[%emt 0:01:06]} Ra5 {[%emt 0:00:31]} 58. Rb2+ {[%emt 0:01:38]} Kg3 {[%emt 0:00:01]} 59. Kb7 {[%emt 0:00:04]} f3 {[%emt 0:00:16]} 60. gxf3 {[%emt 0:00:12]} Kxh3 {[%emt 0:00:04]} 61. f4 {[%emt 0:01:02]} Kg4 {[%emt 0:00:03]} 62. Rh2 {[%emt 0:00:46]} Kg3 {[%emt 0:00:21]} 63. Rh1 {[%emt 0:00:11]} Kxf4 {[%emt 0:00:18]} 64. Rxh4+ {[%emt 0:00:06]} Kg5 {[%emt 0:00:02]} 65. Rb4 {[%emt 0:00:12]} 1-0

[Event "1000GM NY Winter GM-B 2024"]
[Site "New York"]
[Date "2024.01.12"]
[Round "2.1"]
[White "Adewumi, Tanitoluwa"]
[Black "Luo, Terry"]
[Result "1/2-1/2"]
[ECO "D02"]
[WhiteElo "2280"]
[BlackElo "2342"]
[Annotator "RC"]
[PlyCount "74"]
[EventDate "2024.01.10"]
[EventType "tourn"]
[EventCountry "USA"]
[SourceTitle "playchess.com"]
[Source "ChessBase"]
[SourceQuality "1"]
[TimeControl "5400+30"]

1. d4 {[%emt 0:00:14]} Nf6 {[%emt 0:00:03]} 2. Nf3 {[%emt 0:00:09]} g6 {[%emt 0:00:15]} 3. Nc3 {[%emt 0:01:10]} d5 {[%emt 0:00:41]} 4. g3 {[%emt 0:00:08]} Bg7 {[%emt 0:00:12]} 5. Bg2 {[%emt 0:00:05]} O-O {[%emt 0:01:13]} 6. O-O {[%emt 0:00:05]} b6 {[%emt 0:02:54]} 7. Bg5 {[%emt 0:00:52]} Bb7 {[%emt 0:01:10]} 8. Bxf6 {[%emt 0:02:16]} Bxf6 {[%emt 0:10:47]} 9. Re1 {[%emt 0:00:56]} Nd7 {[%emt 0:03:04]} 10. e4 {[%emt 0:00:13]} dxe4 {[%emt 0:00:47]} 11. Nxe4 {[%emt 0:00:10]} Bg7 {[%emt 0:00:07]} 12. c3 {[%emt 0:00:22]} e6 {[%emt 0:19:55]} 13. Qe2 {[%emt 0:01:23]} Nf6 {[%emt 0:03:04]} 14. Nxf6+ {[%emt 0:04:49]} Bxf6 {[%emt 0:00:18]} 15. Rad1 {[%emt 0:00:05]} Qd6 {[%emt 0:02:00]} 16. b4 {[%emt 0:14:18]} a5 {[%emt 0:02:31]} 17. a3 {[%emt 0:07:08]} Rfd8 {[%emt 0:04:24]} 18. Nd2 {[%emt 1:05:07]} Bxg2 {[%emt 0:46:05]} 19. Kxg2 {[%emt 0:00:00]} axb4 {[%emt 0:00:00]} 20. Ne4 {[%emt 0:00:00]} Qd5 {[%emt 0:00:00]} 21. Qf3 {[%emt 0:00:00]} Bg7 {[%emt 0:00:00]} 22. axb4 {[%emt 0:00:00]} Ra2 {[%emt 0:00:00]} 23. h4 {[%emt 0:00:00]} h6 {[%emt 0:00:00]} 24. Rd2 {[%emt 0:00:00]} Rda8 {[%emt 0:00:00]} 25. Ree2 {[%emt 0:00:00]} Ra1 {[%emt 0:00:00]} 26. Rd3 {[%emt 0:00:00]} Rc1 {[%emt 0:00:00]} 27. Nd2 {[%emt 0:00:00]} Qxf3+ {[%emt 0:00:00]} 28. Kxf3 {[%emt 0:00:00]} Ra3 {[%emt 0:00:00]} 29. Ree3 {[%emt 0:00:00]} Ra2 {[%emt 0:00:00]} 30. Ke2 {[%emt 0:00:00]} h5 {[%emt 0:00:00]} 31. f4 {[%emt 0:00:00]} Rac2 {[%emt 0:00:00]} 32. Kf3 {[%emt 0:00:00]} Rd1 {[%emt 0:00:00]} 33. Re2 {[%emt 0:00:00]} c5 {[%emt 0:00:00]} 34. bxc5 {[%emt 0:00:00]} bxc5 {[%emt 0:00:00]} 35. Kf2 {[%emt 0:00:00]} cxd4 {[%emt 0:01:48]} 36. cxd4 {[%emt 0:00:00]} Rc4 {[%emt 0:02:27]} 37. Re4 {[%emt 0:00:00]} Ra4 {[%emt 0:01:24]} 1/2-1/2